[Event "Titled Tuesday Blitz December 27 Early 2022"]
[White "Kazancev, Valerij M"]
[Black "Morefield, Jason"]
[WhiteFideId "4179609"]
[BlackFideId "30920825"]
[WhiteElo "2313"]
[BlackElo "2167"]
[Result "1/2-1/2"]
[Round "02"]
[TimeControl "180+2"]
[Date "2022.12.27"]
[WhiteClock "0:01:00"]
[BlackClock "0:00:28"]

1. c4 {[%clk 0:02:56]}  e5 {[%clk 0:02:57]} 2. Nc3 {[%clk 0:02:55]}  Bb4 {[%clk 0:02:57]} 3. Qb3 {[%clk 0:02:55]}  a5 {[%clk 0:02:54]} 4. a3 {[%clk 0:02:53]}  Bxc3 {[%clk 0:02:52]} 5. Qxc3 {[%clk 0:02:54]}  Nc6 {[%clk 0:02:52]} 6. b3 {[%clk 0:02:54]}  Nf6 {[%clk 0:02:52]} 7. Bb2 {[%clk 0:02:54]}  O-O {[%clk 0:02:52]} 8. e3 {[%clk 0:02:52]}  d5 {[%clk 0:02:53]} 9. cxd5 {[%clk 0:02:52]}  Qxd5 {[%clk 0:02:54]} 10. Nf3 {[%clk 0:02:45]}  e4 {[%clk 0:02:41]} 11. Bc4 {[%clk 0:02:44]}  Qh5 {[%clk 0:02:39]} 12. Ne5 {[%clk 0:02:40]}  Nxe5 {[%clk 0:02:37]} 13. Qxe5 {[%clk 0:02:41]}  Qg6 {[%clk 0:02:36]} 14. Qxc7 {[%clk 0:02:27]}  Bg4 {[%clk 0:02:30]} 15. Qg3 {[%clk 0:02:23]}  Rad8 {[%clk 0:02:15]} 16. f3 {[%clk 0:02:17]}  exf3 {[%clk 0:02:13]} 17. gxf3 {[%clk 0:02:18]}  Be6 {[%clk 0:02:12]} 18. Qxg6 {[%clk 0:02:17]}  hxg6 {[%clk 0:02:13]} 19. Rc1 {[%clk 0:02:01]}  Rfe8 {[%clk 0:02:06]} 20. Bxe6 {[%clk 0:01:46]}  Rxe6 {[%clk 0:02:07]} 21. Bxf6 {[%clk 0:01:41]}  gxf6 {[%clk 0:02:07]} 22. Ke2 {[%clk 0:01:42]}  f5 {[%clk 0:02:05]} 23. Rc7 {[%clk 0:01:39]}  Rb6 {[%clk 0:02:02]} 24. Rb1 {[%clk 0:01:37]}  Kg7 {[%clk 0:02:02]} 25. b4 {[%clk 0:01:33]}  Rh8 {[%clk 0:02:00]} 26. Rc5 {[%clk 0:01:20]}  Rxh2+ {[%clk 0:01:58]} 27. Kd3 {[%clk 0:01:21]}  Rd6+ {[%clk 0:01:57]} 28. Kc4 {[%clk 0:01:21]}  b6 {[%clk 0:01:53]} 29. Rd5 {[%clk 0:01:19]}  Rxd5 {[%clk 0:01:52]} 30. Kxd5 {[%clk 0:01:20]}  Rxd2+ {[%clk 0:01:47]} 31. Kc6 {[%clk 0:01:21]}  axb4 {[%clk 0:01:44]} 32. axb4 {[%clk 0:01:20]}  Rd3 {[%clk 0:01:44]} 33. Re1 {[%clk 0:01:18]}  f4 {[%clk 0:01:41]} 34. exf4 {[%clk 0:01:18]}  Rxf3 {[%clk 0:01:41]} 35. Re4 {[%clk 0:01:18]}  f5 {[%clk 0:01:33]} 36. Rd4 {[%clk 0:01:09]}  Kf6 {[%clk 0:01:01]} 37. Kxb6 {[%clk 0:01:09]}  g5 {[%clk 0:01:01]} 38. fxg5+ {[%clk 0:01:09]}  Kxg5 {[%clk 0:01:00]} 39. b5 {[%clk 0:01:10]}  f4 {[%clk 0:01:00]} 40. Ka7 {[%clk 0:01:05]}  Ra3+ {[%clk 0:00:59]} 41. Kb7 {[%clk 0:01:05]}  f3 {[%clk 0:00:59]} 42. Rd8 {[%clk 0:01:05]}  Ra4 {[%clk 0:00:44]} 43. Rg8+ {[%clk 0:01:04]}  Kh4 {[%clk 0:00:44]} 44. Rf8 {[%clk 0:01:03]}  Kg3 {[%clk 0:00:45]} 45. Rxf3+ {[%clk 0:00:59]}  Kxf3 {[%clk 0:00:45]} 46. b6 {[%clk 0:01:00]}  Ke4 {[%clk 0:00:42]} 47. Kc6 {[%clk 0:01:01]}  Rc4+ {[%clk 0:00:35]} 48. Kd6 {[%clk 0:01:00]}  Rb4 {[%clk 0:00:30]} 49. Kc7 {[%clk 0:01:00]}  Kd5 {[%clk 0:00:28]} 50. b7 {[%clk 0:01:00]}  Rc4+ {[%clk 0:00:29]} 51. Kd7 {[%clk 0:01:00]}  Rb4 {[%clk 0:00:28]} 52. Kc7 {[%clk 0:01:00]}  Rxb7+ {[%clk 0:00:28]} 53. Kxb7 {[%clk 0:01:00]} 1/2-1/2


[Site "https://www.chess.com"]

[Event "Titled Tuesday Blitz December 27 Early 2022"]
[White "Klose, Eli"]
[Black "Beerdsen, Thomas"]
[WhiteFideId "16242955"]
[BlackFideId "1030108"]
[WhiteElo "1519"]
[BlackElo "2507"]
[Result "1-0"]
[Round "02"]
[TimeControl "180+2"]
[Date "2022.12.27"]
[WhiteClock "0:00:40"]
[BlackClock "0:00:01"]

1. e4 {[%clk 0:03:00]}  b6 {[%clk 0:02:58]} 2. d4 {[%clk 0:02:59]}  Bb7 {[%clk 0:02:59]} 3. Bd3 {[%clk 0:02:59]}  e6 {[%clk 0:02:58]} 4. c3 {[%clk 0:02:52]}  c5 {[%clk 0:02:58]} 5. Nf3 {[%clk 0:02:51]}  cxd4 {[%clk 0:02:58]} 6. cxd4 {[%clk 0:02:52]}  Nf6 {[%clk 0:02:59]} 7. Nc3 {[%clk 0:02:51]}  Bb4 {[%clk 0:02:59]} 8. Qe2 {[%clk 0:02:50]}  O-O {[%clk 0:02:58]} 9. O-O {[%clk 0:02:49]}  Bxc3 {[%clk 0:02:49]} 10. bxc3 {[%clk 0:02:49]}  Qc7 {[%clk 0:02:49]} 11. Bg5 {[%clk 0:02:23]}  Kh8 {[%clk 0:02:17]} 12. Rac1 {[%clk 0:02:20]}  Ng8 {[%clk 0:02:15]} 13. Bh4 {[%clk 0:02:13]}  d6 {[%clk 0:02:11]} 14. Bg3 {[%clk 0:02:09]}  Nd7 {[%clk 0:02:07]} 15. e5 {[%clk 0:02:08]}  Bxf3 {[%clk 0:02:04]} 16. Qxf3 {[%clk 0:02:08]}  dxe5 {[%clk 0:02:04]} 17. dxe5 {[%clk 0:02:08]}  Nh6 {[%clk 0:01:59]} 18. Bf4 {[%clk 0:02:04]}  Ng8 {[%clk 0:01:38]} 19. Rfe1 {[%clk 0:01:43]}  Rad8 {[%clk 0:01:31]} 20. Qh3 {[%clk 0:01:39]}  g6 {[%clk 0:01:15]} 21. Bb1 {[%clk 0:01:36]}  f5 {[%clk 0:01:10]} 22. Qg3 {[%clk 0:01:12]}  Ne7 {[%clk 0:00:53]} 23. h4 {[%clk 0:01:12]}  Nd5 {[%clk 0:00:53]} 24. Bg5 {[%clk 0:01:09]}  f4 {[%clk 0:00:48]} 25. Qh3 {[%clk 0:01:05]}  Qc6 {[%clk 0:00:23]} 26. h5 {[%clk 0:01:04]}  Rg8 {[%clk 0:00:04]} 27. hxg6 {[%clk 0:01:02]}  Nf8 {[%clk 0:00:05]} 28. Bxd8 {[%clk 0:01:00]}  Nxg6 {[%clk 0:00:06]} 29. Bf6+ {[%clk 0:00:53]}  Nxf6 {[%clk 0:00:05]} 30. exf6 {[%clk 0:00:53]}  e5 {[%clk 0:00:02]} 31. f7 {[%clk 0:00:52]}  Rf8 {[%clk 0:00:03]} 32. Bxg6 {[%clk 0:00:50]}  Qxg6 {[%clk 0:00:04]} 33. Rxe5 {[%clk 0:00:50]}  Rxf7 {[%clk 0:00:03]} 34. Rce1 {[%clk 0:00:49]}  f3 {[%clk 0:00:02]} 35. Re8+ {[%clk 0:00:45]}  Kg7 {[%clk 0:00:03]} 36. R8e7 {[%clk 0:00:41]}  Qf6 {[%clk 0:00:01]} 37. Qg4+ {[%clk 0:00:40]}  Kf8 {[%clk 0:00:01]} 38. Re8# {[%clk 0:00:40]} 1-0


[Site "https://www.chess.com"]

[Event "Titled Tuesday Blitz December 27 Early 2022"]
[White "Koutlas, Nikolaos"]
[Black "Bryakin, Mikhail"]
[WhiteFideId "25827138"]
[BlackFideId "4165314"]
[WhiteElo "2341"]
[BlackElo "2455"]
[Result "1-0"]
[Round "02"]
[TimeControl "180+2"]
[Date "2022.12.27"]
[WhiteClock "0:01:02"]
[BlackClock "0:01:31"]

1. Nf3 {[%clk 0:03:00]}  Nf6 {[%clk 0:02:54]} 2. g3 {[%clk 0:03:00]}  g6 {[%clk 0:02:53]} 3. Bg2 {[%clk 0:02:59]}  Bg7 {[%clk 0:02:53]} 4. O-O {[%clk 0:03:00]}  O-O {[%clk 0:02:53]} 5. d3 {[%clk 0:03:01]}  c5 {[%clk 0:02:50]} 6. c4 {[%clk 0:02:53]}  Nc6 {[%clk 0:02:48]} 7. Nc3 {[%clk 0:02:50]}  d5 {[%clk 0:02:47]} 8. cxd5 {[%clk 0:02:45]}  Nxd5 {[%clk 0:02:48]} 9. Bd2 {[%clk 0:02:42]}  b6 {[%clk 0:02:41]} 10. Nxd5 {[%clk 0:02:19]}  Qxd5 {[%clk 0:02:38]} 11. Ne5 {[%clk 0:02:16]}  Qxe5 {[%clk 0:02:33]} 12. Bxc6 {[%clk 0:02:15]}  Bh3 {[%clk 0:02:27]} 13. Bc3 {[%clk 0:02:05]}  Bxf1 {[%clk 0:02:25]} 14. Bxe5 {[%clk 0:02:04]}  Bxe5 {[%clk 0:02:17]} 15. Bxa8 {[%clk 0:02:01]}  Bh3 {[%clk 0:02:17]} 16. Bg2 {[%clk 0:01:59]}  Be6 {[%clk 0:02:16]} 17. b3 {[%clk 0:01:56]}  Bxa1 {[%clk 0:02:16]} 18. Qxa1 {[%clk 0:01:56]}  Rd8 {[%clk 0:02:16]} 19. Qe5 {[%clk 0:01:55]}  Rd6 {[%clk 0:02:16]} 20. Qe4 {[%clk 0:01:51]}  Rd7 {[%clk 0:02:12]} 21. Qa8+ {[%clk 0:01:49]}  Kg7 {[%clk 0:02:12]} 22. Bc6 {[%clk 0:01:43]}  Rc7 {[%clk 0:02:05]} 23. Bd5 {[%clk 0:01:43]}  Bh3 {[%clk 0:02:00]} 24. Qb8 {[%clk 0:01:36]}  Rd7 {[%clk 0:01:57]} 25. Bc6 {[%clk 0:01:35]}  Rd6 {[%clk 0:01:58]} 26. Bg2 {[%clk 0:01:35]}  Bg4 {[%clk 0:01:51]} 27. Qxa7 {[%clk 0:01:29]}  Bxe2 {[%clk 0:01:49]} 28. Qxe7 {[%clk 0:01:26]}  Re6 {[%clk 0:01:50]} 29. Qd8 {[%clk 0:01:23]}  Bd1 {[%clk 0:01:47]} 30. h3 {[%clk 0:01:19]}  Re1+ {[%clk 0:01:44]} 31. Kh2 {[%clk 0:01:18]}  Re2 {[%clk 0:01:45]} 32. Qxb6 {[%clk 0:01:18]}  Rxf2 {[%clk 0:01:43]} 33. Qxc5 {[%clk 0:01:18]}  Rxa2 {[%clk 0:01:44]} 34. Qd5 {[%clk 0:01:08]}  Kg8 {[%clk 0:01:42]} 35. b4 {[%clk 0:01:08]}  Rb2 {[%clk 0:01:42]} 36. b5 {[%clk 0:01:08]}  h5 {[%clk 0:01:38]} 37. b6 {[%clk 0:01:06]}  Bb3 {[%clk 0:01:30]} 38. Qd8+ {[%clk 0:01:05]}  Kh7 {[%clk 0:01:31]} 39. b7 {[%clk 0:01:02]} 1-0


[Site "https://www.chess.com"]

[Event "Titled Tuesday Blitz December 27 Early 2022"]
[White "Kravtsiv, Martyn"]
[Black "Vovk, Orest"]
[WhiteFideId "14113147"]
[BlackFideId "14113490"]
[WhiteElo "2598"]
[BlackElo "2315"]
[Result "1-0"]
[Round "02"]
[TimeControl "180+2"]
[Date "2022.12.27"]
[WhiteClock "0:00:36"]
[BlackClock "0:00:02"]

1. e4 {[%clk 0:03:00]}  g5 {[%clk 0:02:55]} 2. d4 {[%clk 0:03:00]}  g4 {[%clk 0:02:52]} 3. Qxg4 {[%clk 0:02:56]}  d5 {[%clk 0:02:52]} 4. Qh4 {[%clk 0:02:56]}  dxe4 {[%clk 0:02:52]} 5. Nc3 {[%clk 0:02:57]}  Nf6 {[%clk 0:02:52]} 6. Bg5 {[%clk 0:02:54]}  Qxd4 {[%clk 0:02:40]} 7. Rd1 {[%clk 0:02:53]}  Qe5 {[%clk 0:01:41]} 8. Be2 {[%clk 0:02:05]}  Rg8 {[%clk 0:01:26]} 9. Bxf6 {[%clk 0:01:39]}  Qxf6 {[%clk 0:01:22]} 10. Nd5 {[%clk 0:01:37]}  Qe5 {[%clk 0:01:10]} 11. Qxh7 {[%clk 0:01:28]}  Rxg2 {[%clk 0:01:02]} 12. Qxe4 {[%clk 0:01:25]}  Rxg1+ {[%clk 0:00:21]} 13. Rxg1 {[%clk 0:01:24]}  Qd6 {[%clk 0:00:13]} 14. Rg8 {[%clk 0:00:51]}  Nc6 {[%clk 0:00:02]} 15. Nb6 {[%clk 0:00:39]}  Qxh2 {[%clk 0:00:01]} 16. Nxa8 {[%clk 0:00:39]}  Be6 {[%clk 0:00:02]} 17. Rg3 {[%clk 0:00:36]} 1-0


[Site "https://www.chess.com"]

[Event "Titled Tuesday Blitz December 27 Early 2022"]
[White "Kvaloy, Aksel Bu"]
[Black "Lauridsen, Jesper Morch"]
[WhiteFideId "1528815"]
[BlackFideId "1401890"]
[WhiteElo "2321"]
[BlackElo "2309"]
[Result "1-0"]
[Round "02"]
[TimeControl "180+2"]
[Date "2022.12.27"]
[WhiteClock "0:00:39"]
[BlackClock "0:00:06"]

1. d4 {[%clk 0:03:00]}  Nf6 {[%clk 0:02:59]} 2. c4 {[%clk 0:02:59]}  c5 {[%clk 0:02:59]} 3. d5 {[%clk 0:02:57]}  e6 {[%clk 0:02:59]} 4. Nc3 {[%clk 0:02:57]}  exd5 {[%clk 0:02:59]} 5. cxd5 {[%clk 0:02:57]}  d6 {[%clk 0:02:59]} 6. Nf3 {[%clk 0:02:58]}  g6 {[%clk 0:03:00]} 7. g3 {[%clk 0:02:59]}  Bg7 {[%clk 0:03:00]} 8. Bg2 {[%clk 0:02:59]}  O-O {[%clk 0:03:00]} 9. O-O {[%clk 0:03:00]}  Re8 {[%clk 0:03:00]} 10. Nd2 {[%clk 0:03:00]}  Nbd7 {[%clk 0:02:55]} 11. a4 {[%clk 0:02:57]}  Rb8 {[%clk 0:02:43]} 12. Nc4 {[%clk 0:02:56]}  Nb6 {[%clk 0:02:33]} 13. Qb3 {[%clk 0:02:30]}  Nxc4 {[%clk 0:02:30]} 14. Qxc4 {[%clk 0:02:31]}  b6 {[%clk 0:02:26]} 15. Bf4 {[%clk 0:02:24]}  Nh5 {[%clk 0:02:23]} 16. Bd2 {[%clk 0:02:22]}  Bg4 {[%clk 0:02:13]} 17. f3 {[%clk 0:02:16]}  Bd4+ {[%clk 0:01:16]} 18. e3 {[%clk 0:02:08]}  Qg5 {[%clk 0:01:04]} 19. exd4 {[%clk 0:01:59]}  Qxd2 {[%clk 0:01:01]} 20. fxg4 {[%clk 0:01:59]}  cxd4 {[%clk 0:00:46]} 21. gxh5 {[%clk 0:01:56]}  Rbc8 {[%clk 0:00:47]} 22. Qb4 {[%clk 0:01:44]}  dxc3 {[%clk 0:00:44]} 23. bxc3 {[%clk 0:01:45]}  Re2 {[%clk 0:00:41]} 24. Bf3 {[%clk 0:01:29]}  Rxh2 {[%clk 0:00:23]} 25. Qd4 {[%clk 0:01:15]}  Qb2 {[%clk 0:00:13]} 26. Rab1 {[%clk 0:01:11]}  Qc2 {[%clk 0:00:12]} 27. hxg6 {[%clk 0:00:52]}  hxg6 {[%clk 0:00:11]} 28. Qe4 {[%clk 0:00:45]}  Qd2 {[%clk 0:00:09]} 29. Rbd1 {[%clk 0:00:42]}  Qh6 {[%clk 0:00:09]} 30. Bg2 {[%clk 0:00:40]}  Rxc3 {[%clk 0:00:07]} 31. Qe8+ {[%clk 0:00:37]}  Kh7 {[%clk 0:00:06]} 32. Rxf7+ {[%clk 0:00:38]}  Qg7 {[%clk 0:00:06]} 33. Rxg7+ {[%clk 0:00:39]} 1-0


[Site "https://www.chess.com"]

[Event "Titled Tuesday Blitz December 27 Early 2022"]
[White "Lavrov, Maxim"]
[Black "Koridze, Lile"]
[WhiteFideId "4166418"]
[BlackFideId "13612514"]
[WhiteElo "2376"]
[BlackElo "2191"]
[Result "1-0"]
[Round "02"]
[TimeControl "180+2"]
[Date "2022.12.27"]
[WhiteClock "0:01:32"]
[BlackClock "0:01:26"]

1. Nf3 {[%clk 0:03:00]}  Nf6 {[%clk 0:02:59]} 2. g3 {[%clk 0:03:01]}  d5 {[%clk 0:02:59]} 3. Bg2 {[%clk 0:03:02]}  c5 {[%clk 0:02:59]} 4. O-O {[%clk 0:03:03]}  Nc6 {[%clk 0:02:59]} 5. d3 {[%clk 0:03:03]}  g6 {[%clk 0:02:58]} 6. Nbd2 {[%clk 0:03:04]}  Bg7 {[%clk 0:02:57]} 7. e4 {[%clk 0:03:04]}  dxe4 {[%clk 0:02:55]} 8. dxe4 {[%clk 0:03:02]}  O-O {[%clk 0:02:55]} 9. Qe2 {[%clk 0:03:00]}  Qc7 {[%clk 0:02:52]} 10. e5 {[%clk 0:03:00]}  Ng4 {[%clk 0:02:52]} 11. Nc4 {[%clk 0:02:56]}  b5 {[%clk 0:02:52]} 12. Ne3 {[%clk 0:02:55]}  Ngxe5 {[%clk 0:02:52]} 13. Nxe5 {[%clk 0:02:55]}  Bxe5 {[%clk 0:02:49]} 14. Qxb5 {[%clk 0:02:54]}  Bd7 {[%clk 0:02:41]} 15. Qxc5 {[%clk 0:02:52]}  Rab8 {[%clk 0:02:40]} 16. Nd5 {[%clk 0:02:51]}  Qd6 {[%clk 0:02:40]} 17. Qxd6 {[%clk 0:02:50]}  Bxd6 {[%clk 0:02:38]} 18. c3 {[%clk 0:02:46]}  Ne5 {[%clk 0:02:35]} 19. Bg5 {[%clk 0:02:33]}  f6 {[%clk 0:02:28]} 20. Bh6 {[%clk 0:02:27]}  Rfc8 {[%clk 0:02:27]} 21. b3 {[%clk 0:02:22]}  g5 {[%clk 0:02:27]} 22. f4 {[%clk 0:02:17]}  Nf7 {[%clk 0:02:26]} 23. fxg5 {[%clk 0:02:11]}  fxg5 {[%clk 0:02:26]} 24. Nxe7+ {[%clk 0:02:11]}  Bxe7 {[%clk 0:02:24]} 25. Bd5 {[%clk 0:02:11]}  Be8 {[%clk 0:02:22]} 26. Rae1 {[%clk 0:02:10]}  Rc7 {[%clk 0:02:16]} 27. h4 {[%clk 0:02:02]}  Rd8 {[%clk 0:01:50]} 28. Be6 {[%clk 0:02:02]}  Bc5+ {[%clk 0:01:37]} 29. Kg2 {[%clk 0:01:59]}  Bc6+ {[%clk 0:01:35]} 30. Kh3 {[%clk 0:01:57]}  Rd2 {[%clk 0:01:33]} 31. Bxg5 {[%clk 0:01:41]}  Bd7 {[%clk 0:01:26]} 32. Bxd2 {[%clk 0:01:32]} 1-0


[Site "https://www.chess.com"]

[Event "Titled Tuesday Blitz December 27 Early 2022"]
[White "Lenderman, Aleksandr"]
[Black "Suleymanli, Suleyman"]
[WhiteFideId "2021285"]
[BlackFideId "13416375"]
[WhiteElo "2572"]
[BlackElo "2269"]
[Result "1-0"]
[Round "02"]
[TimeControl "180+2"]
[Date "2022.12.27"]
[WhiteClock "0:02:00"]
[BlackClock "0:00:52"]

1. Nf3 {[%clk 0:03:00]}  d5 {[%clk 0:02:59]} 2. e3 {[%clk 0:03:01]}  Nf6 {[%clk 0:02:59]} 3. c4 {[%clk 0:03:00]}  c6 {[%clk 0:02:59]} 4. Nc3 {[%clk 0:03:00]}  Bf5 {[%clk 0:02:58]} 5. cxd5 {[%clk 0:02:59]}  cxd5 {[%clk 0:02:58]} 6. Qb3 {[%clk 0:02:59]}  Qd7 {[%clk 0:02:56]} 7. Ne5 {[%clk 0:02:56]}  Qc7 {[%clk 0:02:55]} 8. d4 {[%clk 0:02:38]}  e6 {[%clk 0:02:54]} 9. e4 {[%clk 0:02:38]}  Nxe4 {[%clk 0:02:50]} 10. Bf4 {[%clk 0:02:32]}  Nxc3 {[%clk 0:02:50]} 11. Rc1 {[%clk 0:02:26]}  Bd6 {[%clk 0:02:46]} 12. Rxc3 {[%clk 0:02:26]}  Nc6 {[%clk 0:02:46]} 13. Nxc6 {[%clk 0:02:21]}  bxc6 {[%clk 0:02:44]} 14. Rxc6 {[%clk 0:02:21]}  Bb4+ {[%clk 0:02:23]} 15. Qxb4 {[%clk 0:02:17]}  Qxf4 {[%clk 0:02:14]} 16. Bb5 {[%clk 0:02:16]}  Qe4+ {[%clk 0:01:35]} 17. Kf1 {[%clk 0:02:05]}  f6 {[%clk 0:00:52]} 18. Rc7+ {[%clk 0:02:00]} 1-0


[Site "https://www.chess.com"]

[Event "Titled Tuesday Blitz December 27 Early 2022"]
[White "Lorenzo De La Riva, Lazaro"]
[Black "Thomforde-Toates, Noah"]
[WhiteFideId "2268809"]
[BlackFideId "30951992"]
[WhiteElo "2404"]
[BlackElo "2124"]
[Result "1-0"]
[Round "02"]
[TimeControl "180+2"]
[Date "2022.12.27"]
[WhiteClock "0:00:40"]
[BlackClock "0:00:17"]

1. e4 {[%clk 0:03:00]}  d6 {[%clk 0:02:59]} 2. d4 {[%clk 0:03:00]}  Nf6 {[%clk 0:02:59]} 3. Bd3 {[%clk 0:02:59]}  Nc6 {[%clk 0:02:57]} 4. c3 {[%clk 0:02:59]}  g6 {[%clk 0:02:55]} 5. Nf3 {[%clk 0:02:58]}  Bg7 {[%clk 0:02:55]} 6. O-O {[%clk 0:02:59]}  O-O {[%clk 0:02:55]} 7. Re1 {[%clk 0:02:57]}  e5 {[%clk 0:02:54]} 8. h3 {[%clk 0:02:55]}  a6 {[%clk 0:02:50]} 9. a4 {[%clk 0:02:54]}  exd4 {[%clk 0:02:49]} 10. cxd4 {[%clk 0:02:52]}  Re8 {[%clk 0:02:49]} 11. Nc3 {[%clk 0:02:52]}  h6 {[%clk 0:02:45]} 12. Be3 {[%clk 0:02:41]}  Nd7 {[%clk 0:02:40]} 13. Rc1 {[%clk 0:02:39]}  a5 {[%clk 0:02:39]} 14. Bb1 {[%clk 0:02:38]}  Nb4 {[%clk 0:02:36]} 15. Qd2 {[%clk 0:02:37]}  Kh7 {[%clk 0:02:34]} 16. h4 {[%clk 0:02:37]}  Nb6 {[%clk 0:02:32]} 17. b3 {[%clk 0:02:34]}  Bg4 {[%clk 0:02:31]} 18. h5 {[%clk 0:02:04]}  Bxh5 {[%clk 0:02:28]} 19. Nh2 {[%clk 0:02:04]}  Qh4 {[%clk 0:02:21]} 20. f3 {[%clk 0:02:02]}  g5 {[%clk 0:01:34]} 21. g4 {[%clk 0:02:01]}  Bg6 {[%clk 0:01:31]} 22. Qg2 {[%clk 0:02:01]}  c5 {[%clk 0:01:22]} 23. Nb5 {[%clk 0:01:58]}  cxd4 {[%clk 0:01:17]} 24. Bf2 {[%clk 0:01:58]}  Qxf2+ {[%clk 0:01:10]} 25. Qxf2 {[%clk 0:01:59]}  d5 {[%clk 0:01:08]} 26. Nxd4 {[%clk 0:01:49]}  dxe4 {[%clk 0:01:00]} 27. fxe4 {[%clk 0:01:49]}  Nd7 {[%clk 0:00:58]} 28. Nf5 {[%clk 0:01:45]}  Ne5 {[%clk 0:00:58]} 29. Nxg7 {[%clk 0:01:41]}  Kxg7 {[%clk 0:00:55]} 30. Rc7 {[%clk 0:01:37]}  Rad8 {[%clk 0:00:52]} 31. Qe2 {[%clk 0:01:26]}  Rd4 {[%clk 0:00:47]} 32. Nf3 {[%clk 0:01:21]}  Nxf3+ {[%clk 0:00:43]} 33. Qxf3 {[%clk 0:01:22]}  Red8 {[%clk 0:00:35]} 34. Rf1 {[%clk 0:01:16]}  Nc6 {[%clk 0:00:26]} 35. Rxf7+ {[%clk 0:01:14]}  Bxf7 {[%clk 0:00:26]} 36. Qxf7+ {[%clk 0:01:14]}  Kh8 {[%clk 0:00:26]} 37. Qf6+ {[%clk 0:01:09]}  Kg8 {[%clk 0:00:23]} 38. Qg6+ {[%clk 0:01:09]}  Kh8 {[%clk 0:00:23]} 39. Qxh6+ {[%clk 0:01:07]}  Kg8 {[%clk 0:00:23]} 40. Qxg5+ {[%clk 0:01:07]}  Kh8 {[%clk 0:00:23]} 41. e5 {[%clk 0:01:01]}  R4d7 {[%clk 0:00:14]} 42. e6 {[%clk 0:00:51]}  Rg7 {[%clk 0:00:14]} 43. Qh5+ {[%clk 0:00:44]}  Kg8 {[%clk 0:00:13]} 44. Rf7 {[%clk 0:00:43]}  Rd1+ {[%clk 0:00:12]} 45. Kf2 {[%clk 0:00:43]}  Rxb1 {[%clk 0:00:13]} 46. Rxg7+ {[%clk 0:00:41]}  Kxg7 {[%clk 0:00:14]} 47. Qg5+ {[%clk 0:00:41]}  Kf8 {[%clk 0:00:14]} 48. Qf5+ {[%clk 0:00:41]}  Ke7 {[%clk 0:00:15]} 49. Qxb1 {[%clk 0:00:41]}  Kxe6 {[%clk 0:00:16]} 50. Qe4+ {[%clk 0:00:41]}  Ne5 {[%clk 0:00:17]} 51. g5 {[%clk 0:00:41]}  Kd6 {[%clk 0:00:17]} 52. Kg3 {[%clk 0:00:40]}  Ke6 {[%clk 0:00:16]} 53. Kf4 {[%clk 0:00:40]}  Kd6 {[%clk 0:00:17]} 54. Qxe5+ {[%clk 0:00:40]} 1-0


[Site "https://www.chess.com"]

[Event "Titled Tuesday Blitz December 27 Early 2022"]
[White "Magallanes, Rey Jomar"]
[Black "Andreev, Eduard"]
[WhiteFideId "5205948"]
[BlackFideId "14103400"]
[WhiteElo "2052"]
[BlackElo "2413"]
[Result "0-1"]
[Round "02"]
[TimeControl "180+2"]
[Date "2022.12.27"]
[WhiteClock "0:00:13"]
[BlackClock "0:01:02"]

1. e4 {[%clk 0:03:00]}  c6 {[%clk 0:02:56]} 2. d4 {[%clk 0:03:00]}  d5 {[%clk 0:02:57]} 3. e5 {[%clk 0:03:00]}  c5 {[%clk 0:02:57]} 4. Nf3 {[%clk 0:02:59]}  Nc6 {[%clk 0:02:57]} 5. dxc5 {[%clk 0:02:52]}  Bg4 {[%clk 0:02:56]} 6. Be3 {[%clk 0:02:49]}  e6 {[%clk 0:02:54]} 7. c3 {[%clk 0:02:49]}  Bxf3 {[%clk 0:02:35]} 8. Qxf3 {[%clk 0:02:45]}  Nxe5 {[%clk 0:02:35]} 9. Bb5+ {[%clk 0:02:42]}  Nc6 {[%clk 0:02:34]} 10. O-O {[%clk 0:02:39]}  Nf6 {[%clk 0:02:33]} 11. b4 {[%clk 0:02:36]}  Be7 {[%clk 0:02:31]} 12. Nd2 {[%clk 0:02:31]}  O-O {[%clk 0:02:31]} 13. Rad1 {[%clk 0:02:20]}  Qc7 {[%clk 0:02:23]} 14. Nb3 {[%clk 0:02:16]}  Ne4 {[%clk 0:02:04]} 15. Rc1 {[%clk 0:01:34]}  Bf6 {[%clk 0:02:00]} 16. c4 {[%clk 0:01:32]}  Nxb4 {[%clk 0:01:41]} 17. cxd5 {[%clk 0:01:28]}  exd5 {[%clk 0:01:42]} 18. a3 {[%clk 0:01:26]}  Nc6 {[%clk 0:01:40]} 19. Bxc6 {[%clk 0:01:20]}  bxc6 {[%clk 0:01:39]} 20. Bd4 {[%clk 0:01:18]}  Bxd4 {[%clk 0:01:38]} 21. Nxd4 {[%clk 0:01:19]}  Nd2 {[%clk 0:01:39]} 22. Qg4 {[%clk 0:01:16]}  Nxf1 {[%clk 0:01:37]} 23. Nf5 {[%clk 0:01:12]}  g6 {[%clk 0:01:33]} 24. Nh6+ {[%clk 0:01:10]}  Kh8 {[%clk 0:01:23]} 25. Rxf1 {[%clk 0:00:59]}  Qe5 {[%clk 0:01:19]} 26. Qf3 {[%clk 0:00:56]}  Kg7 {[%clk 0:01:17]} 27. Ng4 {[%clk 0:00:55]}  Qb2 {[%clk 0:01:16]} 28. h4 {[%clk 0:00:45]}  h5 {[%clk 0:01:15]} 29. Ne3 {[%clk 0:00:44]}  Rae8 {[%clk 0:01:11]} 30. Qg3 {[%clk 0:00:43]}  Qf6 {[%clk 0:01:08]} 31. Rb1 {[%clk 0:00:38]}  Re4 {[%clk 0:01:06]} 32. Re1 {[%clk 0:00:22]}  Rfe8 {[%clk 0:01:03]} 33. Re2 {[%clk 0:00:19]}  d4 {[%clk 0:01:03]} 34. Nf5+ {[%clk 0:00:14]}  Qxf5 {[%clk 0:01:03]} 35. Rxe4 {[%clk 0:00:14]}  Rxe4 {[%clk 0:01:04]} 36. Qb8 {[%clk 0:00:14]}  Re2 {[%clk 0:01:02]} 37. Qg8+ {[%clk 0:00:13]}  Kxg8 {[%clk 0:01:02]} 38. f3 {[%clk 0:00:14]}  Qf4 {[%clk 0:01:02]} 39. g3 {[%clk 0:00:13]}  Qxg3+ {[%clk 0:01:02]} 40. Kf1 {[%clk 0:00:13]}  Qf2# {[%clk 0:01:02]} 0-1


[Site "https://www.chess.com"]

[Event "Titled Tuesday Blitz December 27 Early 2022"]
[White "Mahdavi, Reza"]
[Black "Jiganchine, Roman"]
[WhiteFideId "12595926"]
[BlackFideId "2603667"]
[WhiteElo "2339"]
[BlackElo "2205"]
[Result "1-0"]
[Round "02"]
[TimeControl "180+2"]
[Date "2022.12.27"]
[WhiteClock "0:01:21"]
[BlackClock "0:00:06"]

1. d4 {[%clk 0:03:00]}  d5 {[%clk 0:02:59]} 2. c4 {[%clk 0:02:58]}  e6 {[%clk 0:02:59]} 3. Nc3 {[%clk 0:02:56]}  Nf6 {[%clk 0:02:59]} 4. Nf3 {[%clk 0:02:56]}  c5 {[%clk 0:02:58]} 5. cxd5 {[%clk 0:02:52]}  cxd4 {[%clk 0:02:58]} 6. Qxd4 {[%clk 0:02:38]}  exd5 {[%clk 0:02:56]} 7. Bg5 {[%clk 0:02:37]}  Be7 {[%clk 0:02:56]} 8. e3 {[%clk 0:02:37]}  O-O {[%clk 0:02:54]} 9. Qa4 {[%clk 0:02:37]}  Be6 {[%clk 0:02:48]} 10. Bd3 {[%clk 0:02:32]}  h6 {[%clk 0:02:44]} 11. Bh4 {[%clk 0:02:31]}  Nc6 {[%clk 0:02:42]} 12. O-O {[%clk 0:02:30]}  Qb6 {[%clk 0:02:37]} 13. Ne2 {[%clk 0:02:30]}  Rfd8 {[%clk 0:01:56]} 14. a3 {[%clk 0:02:29]}  Rac8 {[%clk 0:01:40]} 15. b4 {[%clk 0:02:22]}  g5 {[%clk 0:01:28]} 16. Bg3 {[%clk 0:02:22]}  Ne4 {[%clk 0:01:28]} 17. Rac1 {[%clk 0:02:18]}  Bf6 {[%clk 0:01:10]} 18. b5 {[%clk 0:02:05]}  Nxg3 {[%clk 0:00:57]} 19. hxg3 {[%clk 0:01:53]}  Ne5 {[%clk 0:00:51]} 20. Nxe5 {[%clk 0:01:53]}  Bxe5 {[%clk 0:00:52]} 21. Nd4 {[%clk 0:01:41]}  Bxd4 {[%clk 0:00:37]} 22. exd4 {[%clk 0:01:41]}  Kg7 {[%clk 0:00:29]} 23. Qb4 {[%clk 0:01:42]}  Rc7 {[%clk 0:00:19]} 24. Rc5 {[%clk 0:01:39]}  Rdc8 {[%clk 0:00:15]} 25. Rfc1 {[%clk 0:01:39]}  h5 {[%clk 0:00:08]} 26. a4 {[%clk 0:01:33]}  a5 {[%clk 0:00:08]} 27. Qc3 {[%clk 0:01:20]}  Rxc5 {[%clk 0:00:06]} 28. dxc5+ {[%clk 0:01:21]} 1-0


[Site "https://www.chess.com"]